bitfinex/quotes_SOLUSD_20250529
["timestamp","ask_amount","ask_price","bid_price","bid_amount"]
[1748514370033,1.26857642,172.33,172.32,12.46476378]
[1748514371431,1.26857642,172.34,172.32,12.46476378]
[1748514371630,1.26857642,172.34,172.33,12.46476378]
[1748514388044,1.26857642,172.34,172.33,8.03428503]
[1748514397048,7.21322145,172.34,172.33,0.14216157]
[1748514398266,7.49754459,172.34,172.33,0.14216157]
[1748514406751,1.26857642,172.27,172.25,0.14216157]
[1748514407072,1.26857642,172.27,172.26,8.03428503]
[1748514411452,1.26857642,172.27,172.26,0.14216157]
[1748514411653,1.26857642,172.27,172.26,8.03428503]
[1748514415670,7.07341765,172.27,172.26,0.14216157]
[1748514416493,7.07341765,172.27,172.26,8.03428503]
[1748514419187,1.26857642,172.27,172.26,8.03428503]
[1748514421787,1.17627642,172.27,172.26,8.03428503]
[1748514425179,1.17627642,172.27,172.26,0.14216157]
[1748514425483,1.17627642,172.27,172.26,8.03428503]
[1748514434601,1.17627642,172.28,172.27,0.14216157]
[1748514434908,1.17627642,172.28,172.27,8.03428503]
[1748514449032,1.17627642,172.28,172.27,13.83912626]
[1748514449708,1.17627642,172.28,172.27,8.03428503]
[1748514453914,1.17627642,172.29,172.27,8.03428503]
[1748514454132,1.17627642,172.29,172.28,8.03428503]
[1748514460324,1.17627642,172.3,172.29,0.14216157]
[1748514460541,1.17627642,172.3,172.29,8.03428503]
[1748514461580,1.17627642,172.25,172.24,9.40216157]
[1748514461726,1.17627642,172.25,172.24,17.29428503]
[1748514471148,1.17627642,172.25,172.24,8.03428503]
[1748514474973,1.17627642,172.26,172.25,0.14216157]
[1748514475149,1.17627642,172.26,172.25,8.03428503]
[1748514496672,1.17627642,172.26,172.24,0.14216157]
[1748514496878,1.17627642,172.26,172.25,8.03428503]
[1748514499087,6.98145463,172.26,172.25,8.03428503]
[1748514499882,1.17627642,172.26,172.25,8.03428503]
[1748514503661,6.98145463,172.26,172.25,8.03428503]
[1748514504170,6.98145463,172.26,172.25,0.14216157]
[1748514505574,7.1236162,172.26,172.25,0.14216157]
[1748514509393,7.1236162,172.26,172.25,8.03428503]
[1748514509692,1.17627642,172.26,172.25,8.03428503]
[1748514519878,6.98145463,172.26,172.25,8.03428503]
[1748514520912,7.1236162,172.26,172.25,0.14216157]
[1748514521124,7.40793934,172.26,172.25,0.14216157]
[1748514524603,0.42648471,172.25,172.22,7.89212346]
[1748514524773,0.42648471,172.25,172.23,0.14216157]
[1748514524976,1.31843799,172.24,172.23,0.14216157]
[1748514526777,7.12429028,172.24,172.23,0.14216157]
[1748514527717,7.12429028,172.24,172.23,7.89212346]
[1748514527926,7.12429028,172.24,172.23,8.03428503]
[1748514528220,7.12429028,172.24,172.23,0.14216157]
[1748514528385,7.12429028,172.24,172.23,8.03428503]
[1748514528585,1.17627642,172.24,172.23,8.03428503]
[1748514531984,1.17627642,172.25,172.24,8.03428503]
[1748514532724,1.17627642,172.26,172.24,8.03428503]
[1748514532894,1.17627642,172.26,172.25,8.03428503]
[1748514544429,7.1236162,172.26,172.25,0.14216157]
[1748514549928,7.40793934,172.26,172.25,0.14216157]
[1748514552340,7.1236162,172.26,172.25,8.03428503]
[1748514556440,7.1236162,172.26,172.25,0.14216157]
[1748514560615,7.40793934,172.26,172.25,0.14216157]
[1748514560818,1.17627642,172.23,172.22,8.03428503]
[1748514562236,6.98246581,172.23,172.22,8.03428503]
[1748514564347,6.98246581,172.23,172.22,0.14216157]
[1748514564546,7.12462738,172.23,172.22,8.03428503]
[1748514564745,7.12462738,172.23,172.22,0.14216157]
[1748514567954,15.30107398,172.23,172.22,0.14216157]
[1748514568118,7.40895052,172.23,172.22,0.14216157]
[1748514570325,1.60276113,172.21,172.2,0.19216157]
[1748514571152,7.40962484,172.21,172.2,0.19216157]
[1748514572034,7.40962484,172.21,172.2,0.05]
[1748514573447,1.60276113,172.21,172.2,0.05]
[1748514573633,33.95139716,172.21,172.2,0.05]
[1748514575722,26.0592737,172.21,172.2,0.05]
[1748514575961,35.61489716,172.21,172.2,0.05]
[1748514580267,27.7227737,172.21,172.2,0.05]
[1748514580464,35.61489716,172.21,172.2,0.05]
[1748514581850,43.50702062,172.21,172.2,0.05]
[1748514582362,83.321891,172.21,172.2,0.05]
[1748514582766,87.88603485,172.21,172.2,0.05]
[1748514583952,1.17627642,172.11,172.1,0.14216157]
[1748514585047,1.17627642,172.11,172.09,7.89212346]
[1748514585272,1.17627642,172.11,172.1,0.14216157]
[1748514585769,6.98651405,172.11,172.05,8.0159]
[1748514585980,7.12867562,172.11,172.1,0.14216157]
[1748514586153,7.12867562,172.11,172.05,8.0159]
[1748514586154,1.17627642,172.06,172.05,8.0159]
[1748514586356,1.17627642,172.07,172.05,8.15806157]
[1748514586568,1.17627642,172.07,172.06,8.03428503]
[1748514586955,1.17627642,172.07,172.06,0.14216157]
[1748514587151,1.17627642,172.07,172.06,8.03428503]
[1748514588957,5.81103105,172.09,172.05,8.03428503]
[1748514588958,1.17627642,172.06,172.05,8.03428503]
[1748514589995,1.17627642,172.06,172.05,12.51502304]
[1748514590858,1.31843799,172.06,172.05,12.51502304]
[1748514591793,7.13036406,172.06,172.05,12.51502304]
[1748514592593,1.31843799,172.06,172.05,12.51502304]
[1748514593382,1.17627642,172.06,172.05,12.51502304]
[1748514595873,1.17627642,172.06,172.05,0.14216157]
[1748514598173,7.13036406,172.06,172.05,0.14216157]
[1748514599561,1.31843799,172.06,172.05,0.14216157]
[1748514600382,1.31843799,172.06,172.05,12.51502304]
[1748514600685,1.17627642,172.06,172.05,12.51502304]
[1748514601668,1.17627642,172.06,172.05,0.14216157]
[1748514602359,7.13036406,172.06,172.05,0.14216157]
[1748514603303,7.4146872,172.06,172.05,0.14216157]
[1748514605008,26.06433606,172.06,172.05,0.14216157]
[1748514605677,6.98820249,172.06,172.05,0.14216157]
[1748514605877,1.31843799,172.06,172.05,0.14216157]
[1748514606072,1.31843799,172.06,172.05,12.51502304]
[1748514606293,1.17627642,172.06,172.05,12.51502304]
[1748514608012,1.17627642,172.07,172.06,0.14216157]
[1748514608201,1.17627642,172.07,172.06,12.51502304]
[1748514608868,1.17627642,172.08,172.06,12.51502304]
[1748514609105,1.17627642,172.08,172.07,12.51502304]
[1748514609991,1.17627642,172.09,172.08,0.14216157]
[1748514610171,1.17627642,172.09,172.08,12.51502304]
[1748514618004,1.17627642,172.09,172.08,8.05670598]
[1748514621023,1.17627642,172.1,172.08,13.86778085]
[1748514621233,1.17627642,172.1,172.09,8.05670598]
[1748514622303,1.17627642,172.12,172.09,13.86761887]
[1748514622503,1.17627642,172.12,172.11,8.05670598]
[1748514624305,6.98617648,172.12,172.11,0.14216157]
[1748514624522,6.98617648,172.12,172.11,8.05670598]
[1748514626710,1.17627642,172.12,172.11,8.05670598]
[1748514630011,1.17627642,172.12,172.11,12.50579389]
[1748514639571,6.98617648,172.12,172.11,0.14216157]
[1748514639729,1.17627642,172.12,172.11,12.50579389]
[1748514639909,6.98617648,172.12,172.11,0.14216157]
[1748514640110,1.17627642,172.12,172.11,12.50579389]
[1748514641123,6.98617648,172.12,172.11,12.50579389]
[1748514643350,6.98617648,172.12,172.11,0.14216157]
[1748514645742,6.98617648,172.12,172.11,12.50579389]
[1748514649926,6.98617648,172.12,172.11,8.05578625]
[1748514653845,6.98617648,172.12,172.11,0.14216157]
[1748514654946,7.27049962,172.12,172.11,0.14216157]
[1748514658527,7.27049962,172.12,172.11,8.05578625]
[1748514660829,1.17627642,172.12,172.11,8.05578625]
[1748514661044,1.17627642,172.12,172.11,43.59578625]
[1748514662263,1.17627642,172.14,172.12,0.14216157]
[1748514662471,1.17627642,172.14,172.13,8.05578625]
[1748514664047,1.17627642,172.14,172.13,12.50128267]
[1748514665441,6.98550146,172.14,172.13,12.50128267]
[1748514673871,1.17627642,172.14,172.13,12.50128267]
[1748514683860,1.17627642,172.14,172.13,0.14216157]
[1748514684070,1.17627642,172.14,172.13,8.05233997]
[1748514695005,1.17627642,172.14,172.13,43.57233997]
[1748514695187,1.17627642,172.16,172.14,0.14216157]
[1748514695376,1.17627642,172.15,172.14,0.14216157]
[1748514695571,1.17627642,172.15,172.14,8.05233997]
[1748514701120,1.17627642,172.15,172.14,0.14216157]
[1748514701290,1.17627642,172.12,172.11,0.14216157]
[1748514701488,1.17627642,172.12,172.11,8.05233997]
[1748514704090,1.17627642,172.12,172.11,0.14216157]
[1748514704291,1.17627642,172.12,172.11,8.05233997]
[1748514709589,6.98617648,172.12,172.11,0.14216157]
[1748514709823,1.17627642,172.09,172.08,0.14216157]
[1748514710019,1.17627642,172.09,172.08,8.05233997]
[1748514710520,1.17627642,172.09,172.08,34.05233997]
[1748514712432,1.17627642,172.07,172.05,9.2]
[1748514712599,1.17627642,172.07,172.06,8.05233997]
[1748514712914,1.17627642,172.07,172.06,0.14216157]
[1748514715013,1.17627642,172.07,172.06,8.05233997]
[1748514716950,1.17627642,172.07,172.06,0.14216157]
[1748514717127,1.17627642,172.07,172.06,8.05233997]
[1748514717440,6.98786472,172.07,172.06,8.05233997]
[1748514718220,1.17627642,172.07,172.06,8.05233997]
[1748514722642,1.17627642,172.09,172.06,13.86426604]
[1748514722849,1.17627642,172.09,172.08,34.05233997]
[1748514724514,1.17627642,172.11,172.09,0.14216157]
[1748514724723,1.17627642,172.11,172.1,8.05233997]
[1748514726718,0.14216157,172.15,172.11,0.14216157]
[1748514726719,1.17627642,172.12,172.11,0.14216157]
[1748514726919,1.17627642,172.13,172.11,8.05233997]
[1748514727119,1.17627642,172.13,172.12,8.05233997]
[1748514739195,26.06197252,172.13,172.12,0.14216157]
[1748514743963,173.36197252,172.13,172.12,0.14216157]
[1748514749588,26.06197252,172.13,172.12,0.14216157]
[1748514765523,26.06197252,172.13,172.06,9.18]
[1748514765524,1.17627642,172.08,172.06,9.18]
[1748514765734,1.17627642,172.07,172.06,9.32216157]
[1748514766206,1.17627642,172.07,172.06,0.14216157]
[1748514767110,1.17627642,172.07,172.06,8.05233997]
[1748514771525,6.98786472,172.07,172.06,8.05233997]
[1748514772319,6.98786472,172.07,172.06,0.14216157]
[1748514772691,6.98786472,172.07,172.06,8.05233997]
[1748514777309,7.27218786,172.07,172.06,0.14216157]
[1748514777713,26.06399829,172.07,172.06,0.14216157]
[1748514780535,6.98786472,172.07,172.06,0.14216157]
[1748514780913,7.27218786,172.07,172.06,0.14216157]
[1748514782622,1.46059956,172.07,172.06,0.14216157]
[1748514783123,7.27218786,172.07,172.06,0.14216157]
[1748514783424,1.17627642,172.07,172.06,8.05233997]
[1748514788010,1.17627642,172.08,172.07,0.14216157]
[1748514788220,1.17627642,172.08,172.07,8.05233997]
[1748514795638,1.17627642,172.13,172.07,13.86389655]
[1748514795815,1.17627642,172.1,172.09,0.14216157]
[1748514796015,1.17627642,172.11,172.09,8.05233997]
[1748514796324,1.17627642,172.12,172.11,0.14216157]
[1748514796641,1.17627642,172.12,172.11,43.55233997]
[1748514797734,1.17627642,172.13,172.11,43.55233997]
[1748514797934,148.47627642,172.14,172.13,0.14216157]
[1748514798120,148.47627642,172.14,172.13,8.05233997]
[1748514800236,1.17627642,172.14,172.13,8.05233997]
[1748514805637,1.17627642,172.15,172.14,0.14216157]
[1748514805828,1.17627642,172.15,172.14,43.53233997]
[1748514807544,1.17627642,172.17,172.14,43.53233997]
[1748514807730,1.17627642,172.15,172.14,35.62216157]
[1748514807933,1.17627642,172.15,172.14,43.53233997]
[1748514809631,6.98452396,172.17,172.14,43.53233997]
[1748514809840,1.17627642,172.15,172.14,35.62216157]
[1748514810034,1.17627642,172.15,172.14,43.53233997]
[1748514810433,1.17627642,172.17,172.14,43.53233997]
[1748514810636,148.47627642,172.18,172.17,0.14216157]
[1748514810832,148.47627642,172.18,172.17,43.51233997]
[1748514812028,1.17627642,172.18,172.17,43.51233997]
[1748514821261,1.17627642,172.19,172.17,43.51233997]
[1748514821433,1.17627642,172.18,172.17,43.51233997]
[1748514824334,1.17627642,172.19,172.17,43.51233997]
[1748514824529,1.17627642,172.18,172.17,43.51233997]
[1748514825152,1.17627642,172.19,172.17,43.51233997]
[1748514825345,1.17627642,172.18,172.17,43.51233997]
[1748514825839,1.17627642,172.2,172.17,43.51233997]
[1748514826131,1.17627642,172.2,172.19,8.05233997]
[1748514828439,1.17627642,172.21,172.2,0.14216157]
[1748514829653,1.17627642,172.21,172.2,35.60216157]
[1748514829861,1.17627642,172.21,172.2,43.51233997]
[1748514831350,147.3,172.22,172.2,75.15305357]
[1748514831548,147.3,172.22,172.21,8.05233997]
[1748514831755,1.17627642,172.25,172.21,13.85920368]
[1748514831934,153.1049534,172.27,172.22,0.14216157]
[1748514831935,1.17627642,172.23,172.22,0.14216157]
[1748514832135,1.17627642,172.23,172.22,8.05233997]
[1748514833343,147.3,172.27,172.22,8.05233997]
[1748514833344,1.17627642,172.24,172.22,8.05233997]
[1748514833550,1.17627642,172.24,172.23,43.49233997]
[1748514834443,1.17627642,172.25,172.24,0.14216157]
[1748514834831,1.17627642,172.26,172.24,8.05233997]
[1748514835059,1.17627642,172.26,172.25,8.05233997]
[1748514835261,148.47627642,172.27,172.26,0.14216157]
[1748514835434,148.47627642,172.27,172.26,8.05233997]
[1748514835637,1.17627642,172.28,172.26,43.49233997]
[1748514835849,1.17627642,172.28,172.27,8.05233997]
[1748514837653,1.17627642,172.29,172.28,0.14216157]
[1748514837844,1.17627642,172.29,172.28,8.05233997]
[1748514839552,1.17627642,172.3,172.28,8.05233997]
[1748514839757,1.17627642,172.3,172.29,8.05233997]
[1748514840546,1.17627642,172.31,172.3,0.14216157]
[1748514841158,147.3,172.32,172.3,8.05233997]
[1748514841472,1.17627642,172.35,172.32,0.14216157]
[1748514841637,148.47627642,172.36,172.34,8.05233997]
[1748514841947,147.3,172.36,172.35,8.05233997]
[1748514842158,1.17627642,172.39,172.36,0.14216157]
[1748514842355,153.1002182,172.41,172.39,0.14216157]
[1748514842356,1.17627642,172.4,172.39,0.14216157]
[1748514842550,1.17627642,172.4,172.39,43.49233997]
[1748514843074,7.8074,172.44,172.39,43.49233997]
[1748514843075,1.17627642,172.41,172.39,43.49233997]
[1748514843245,1.17627642,172.43,172.41,0.14216157]
[1748514843445,1.17627642,172.43,172.42,8.05233997]
[1748514843978,1.17627642,172.43,172.42,12.46089834]
[1748514844265,6.97573127,172.43,172.42,12.46089834]
[1748514844477,6.97573127,172.43,172.42,0.14216157]
[1748514844976,6.97573127,172.43,172.42,12.46089834]
[1748514846452,6.97573127,172.43,172.42,0.14216157]
[1748514851464,6.97573127,172.43,172.42,12.46089834]
[1748514851465,32.97573127,172.43,172.42,12.46089834]
[1748514851660,32.97573127,172.43,172.42,0.14216157]
[1748514855971,33.26005441,172.43,172.42,0.14216157]
[1748514858355,7.26005441,172.43,172.42,0.14216157]
[1748514863280,1.17627642,172.38,172.37,12.46089834]
[1748514863471,1.17627642,172.38,172.37,0.14216157]
[1748514863672,6.97741344,172.38,172.37,0.14216157]
[1748514864270,38.37228378,172.38,172.37,0.14216157]
[1748514864660,38.37228378,172.38,172.33,21.45873677]
[1748514864859,38.37228378,172.38,172.34,0.14216157]
[1748514864860,19.07613357,172.37,172.34,0.14216157]
[1748514865182,1.17627642,172.35,172.34,0.14216157]
[1748514865887,6.97842321,172.35,172.34,0.14216157]
[1748514866569,6.97842321,172.35,172.33,12.46089834]
[1748514866771,1.17627642,172.34,172.33,0.14216157]
[1748514868486,6.97875988,172.34,172.33,0.14216157]
[1748514868688,1.17627642,172.34,172.33,12.46089834]
[1748514869697,1.17627642,172.34,172.33,0.14216157]
[1748514871995,6.97875988,172.34,172.33,0.14216157]
[1748514873577,6.97875988,172.34,172.33,12.46089834]
[1748514873578,1.17627642,172.34,172.33,12.46089834]
[1748514877388,1.17627642,172.35,172.33,12.46089834]
[1748514877583,1.17627642,172.34,172.33,0.14216157]
[1748514877782,1.17627642,172.34,172.33,12.46089834]
[1748514879877,148.47627642,172.36,172.33,12.46089834]
[1748514880099,148.47627642,172.36,172.35,12.46089834]
[1748514880398,148.47627642,172.36,172.35,47.86089834]
[1748514880806,147.3,172.36,172.35,47.86089834]
[1748514882394,148.47627642,172.36,172.35,47.86089834]
[1748514882902,148.47627642,172.36,172.35,0.14216157]
[1748514883108,154.27808658,172.36,172.35,0.14216157]
[1748514884315,166.88114649,172.36,172.35,0.14216157]
[1748514884696,185.67295692,172.36,172.35,0.14216157]
[1748514886710,19.07613357,172.35,172.3,9.14]
[1748514886909,1.17627642,172.31,172.3,9.28216157]
[1748514894121,1.17627642,172.31,172.3,21.60089834]
[1748514896630,1.17627642,172.31,172.3,9.28216157]
[1748514900032,5.80292332,172.33,172.3,9.28216157]
[1748514900033,1.17627642,172.32,172.31,0.14216157]
[1748514900344,1.17627642,172.32,172.31,47.86089834]
[1748514900504,147.3,172.35,172.31,47.86089834]
[1748514900505,1.17627642,172.34,172.31,47.86089834]
[1748514900834,1.17627642,172.34,172.33,12.46089834]
[1748514901017,147.3,172.35,172.34,0.14216157]
[1748514901018,148.47627642,172.35,172.34,0.14216157]
[1748514901333,148.47627642,172.35,172.34,47.86089834]
[1748514902132,1.17627642,172.35,172.34,47.86089834]
[1748514906330,153.10089787,172.39,172.34,53.6633818]
[1748514906331,1.17627642,172.36,172.34,53.6633818]
[1748514906526,1.17627642,172.36,172.35,12.46089834]
[1748514906726,1.17627642,172.38,172.36,0.14216157]
[1748514906934,1.17627642,172.37,172.36,0.14216157]
[1748514907135,1.17627642,172.37,172.36,47.86089834]
[1748514908220,1.17627642,172.38,172.36,53.66264562]
[1748514908435,1.17627642,172.38,172.37,12.46089834]
[1748514908814,1.17627642,172.39,172.38,0.14216157]
[1748514909021,1.17627642,172.39,172.38,12.46089834]
[1748514910517,1.17627642,172.41,172.39,0.14216157]
[1748514910715,1.17627642,172.41,172.4,12.46089834]
[1748514910937,1.17627642,172.42,172.41,0.14216157]
[1748514911126,1.17627642,172.42,172.41,12.46089834]
[1748514911637,1.17627642,172.43,172.41,12.46089834]
[1748514912032,1.17627642,172.43,172.39,35.4]
[1748514912033,1.17627642,172.43,172.42,12.46089834]
[1748514912230,1.17627642,172.43,172.42,0.14216157]
[1748514912434,1.17627642,172.43,172.42,12.46089834]
[1748514914944,1.17627642,172.43,172.42,47.84089834]
[1748514915326,1.17627642,172.44,172.43,0.14216157]
[1748514916439,6.97539495,172.44,172.43,0.14216157]
[1748514917364,1.17627642,172.44,172.43,0.14216157]
[1748514917939,1.17627642,172.44,172.43,12.46089834]
[1748514919960,9.50960975,172.46,172.43,12.46089834]
[1748514920137,8.33333333,172.46,172.45,12.46089834]
[1748514920338,8.33333333,172.46,172.45,47.84089834]
[1748514920979,9.50960975,172.46,172.45,47.84089834]
[1748514921156,8.33333333,172.46,172.45,47.84089834]
[1748514922277,9.50960975,172.46,172.45,47.84089834]
[1748514922942,9.50960975,172.46,172.45,35.52216157]
[1748514923143,9.50960975,172.46,172.45,47.84089834]
[1748514926659,15.30805576,172.46,172.45,0.14216157]
[1748514928162,46.7029261,172.46,172.45,0.14216157]
[1748514928510,46.7029261,172.46,172.4,0.14216157]
[1748514928511,1.17627642,172.41,172.4,0.14216157]
[1748514929455,1.17627642,172.41,172.4,12.46089834]
[1748514930851,1.17627642,172.41,172.4,0.14216157]
[1748514931661,6.97640402,172.41,172.4,0.14216157]
[1748514933557,1.17627642,172.41,172.4,0.14216157]
[1748514934481,1.17627642,172.41,172.4,12.46089834]
[1748514935689,1.17627642,172.41,172.4,0.14216157]
[1748514937069,6.97640402,172.41,172.4,0.14216157]
[1748514937587,1.17627642,172.41,172.4,0.14216157]
[1748514941175,6.97640402,172.41,172.4,0.14216157]
[1748514944095,6.97640402,172.41,172.35,5.80205535]
[1748514944096,1.17627642,172.37,172.36,0.14216157]
[1748514945403,1.17627642,172.36,172.35,35.52216157]
[1748514945715,1.17627642,172.36,172.35,0.14216157]
[1748514945872,6.97808658,172.36,172.35,0.14216157]
[1748514949095,1.17627642,172.36,172.35,0.14216157]
[1748514949510,1.17627642,172.36,172.35,12.46089834]
[1748514951046,1.17627642,172.36,172.35,0.14216157]
[1748514951996,1.17627642,172.36,172.35,12.46089834]
[1748514953094,1.17627642,172.36,172.35,0.14216157]
[1748514960330,1.17627642,172.36,172.35,12.46089834]
[1748514960940,1.17627642,172.4,172.35,18.26293104]
[1748514961148,1.17627642,172.38,172.37,0.14216157]
[1748514961318,1.17627642,172.38,172.37,12.46089834]
[1748514962911,5.8005109,172.4,172.35,12.31873677]
[1748514962912,1.17627642,172.36,172.35,12.31873677]
[1748514963125,1.17627642,172.36,172.35,47.84089834]
[1748514963841,1.17627642,172.36,172.35,12.46089834]
[1748514964020,1.17627642,172.36,172.35,47.84089834]
[1748514964344,6.97808658,172.36,172.35,35.52216157]
[1748514969724,1.17627642,172.36,172.35,35.52216157]
[1748514969933,1.17627642,172.36,172.35,47.84089834]
[1748514971018,1.17627642,172.37,172.36,0.14216157]
[1748514971226,1.17627642,172.37,172.36,12.46089834]
[1748514972027,1.17627642,172.37,172.36,35.52216157]
[1748514972245,6.97774999,172.37,172.36,35.52216157]
[1748514972935,1.17627642,172.37,172.36,35.52216157]
[1748514979138,1.17627642,172.37,172.36,0.14216157]
[1748514982647,1.17627642,172.37,172.36,12.46089834]
[1748514983439,1.17627642,172.37,172.36,0.14216157]
[1748514985262,1.17627642,172.37,172.36,12.46089834]
[1748514988085,1.17627642,172.37,172.36,26.14216157]
[1748514992266,1.17627642,172.35,172.34,9.14]
[1748514992472,1.17627642,172.35,172.34,9.28216157]
[1748514992789,1.17627642,172.35,172.34,0.14216157]
[1748514995365,1.17627642,172.35,172.34,34.03250889]
[1748514995708,1.17627642,172.35,172.34,69.41250889]
[1748514995994,1.17627642,172.35,172.34,73.85124993]
[1748515002860,1.17627642,172.36,172.35,0.14216157]
[1748515003088,1.17627642,172.36,172.35,12.47124993]
[1748515008724,1.17627642,172.36,172.35,0.14216157]
[1748515009573,1.17627642,172.34,172.33,35.28216157]
[1748515013008,1.17627642,172.34,172.33,26.14216157]
[1748515013703,6.97875988,172.34,172.33,26.14216157]
[1748515013882,7.26308302,172.34,172.33,0.14216157]
[1748515014492,1.46059956,172.34,172.33,0.14216157]
[1748515017509,7.26308302,172.34,172.33,0.14216157]
[1748515019505,38.38398181,172.34,172.33,0.14216157]
[1748515020408,1.31843799,172.31,172.3,9.12]
[1748515020715,1.31843799,172.31,172.3,9.26216157]
[1748515022195,1.46059956,172.31,172.3,0.14216157]
[1748515022385,7.26409326,172.31,172.3,0.14216157]
[1748515022887,1.46059956,172.31,172.3,0.14216157]
[1748515023786,7.26409326,172.31,172.3,0.14216157]
[1748515024802,38.38499205,172.31,172.26,9.14]
[1748515024999,1.17627642,172.27,172.26,9.28216157]
[1748515025205,1.17627642,172.27,172.26,21.61124993]
[1748515029121,1.17627642,172.27,172.26,9.28216157]
[1748515030428,1.17627642,172.27,172.26,21.61124993]
[1748515030924,1.17627642,172.28,172.26,21.61124993]
[1748515031226,1.17627642,172.28,172.27,38.47124993]
[1748515036004,1.17627642,172.28,172.23,6.5676]
[1748515036005,1.17627642,172.28,172.22,2.89795857]
[1748515036193,1.17627642,172.21,172.2,36.9704]
[1748515036399,1.17627642,172.21,172.2,35.52216157]
[1748515036628,1.17627642,172.21,172.2,47.85124993]
[1748515036828,1.17627642,172.21,172.2,0.14216157]
[1748515037701,1.31843799,172.21,172.2,0.14216157]
[1748515039739,7.26746327,172.21,172.2,0.14216157]
[1748515039911,18.933972,172.2,172.17,38.32908836]
[1748515040104,1.31843799,172.19,172.18,0.14216157]
[1748515040433,1.17627642,172.18,172.17,0.14216157]
[1748515040724,1.17627642,172.18,172.16,0.14216157]
[1748515040929,1.17627642,172.18,172.16,12.47124993]
[1748515042510,1.17627642,172.17,172.16,12.47124993]
[1748515043032,1.17627642,172.17,172.16,38.47124993]
[1748515043241,1.17627642,172.18,172.16,44.27980011]
[1748515043408,1.17627642,172.19,172.18,0.14216157]
[1748515043607,1.17627642,172.19,172.18,12.47124993]
[1748515044014,1.17627642,172.19,172.18,38.47124993]
[1748515044334,1.17627642,172.19,172.18,73.87124993]
[1748515047418,1.17627642,172.19,172.18,53.67905952]
[1748515047829,1.17627642,172.2,172.18,53.67905952]
[1748515048133,1.17627642,172.2,172.19,12.47124993]
[1748515048332,1.17627642,172.21,172.2,26.14216157]
[1748515048531,1.17627642,172.22,172.2,26.14216157]
[1748515048911,1.17627642,172.21,172.2,26.14216157]
[1748515049222,1.17627642,172.21,172.2,38.47124993]
[1748515050219,1.17627642,172.22,172.2,38.47124993]
[1748515050421,1.17627642,172.22,172.21,12.47124993]
[1748515051229,1.17627642,172.23,172.22,0.14216157]
[1748515051434,1.17627642,172.24,172.22,12.47124993]
[1748515051660,1.17627642,172.24,172.23,12.47124993]
[1748515052015,1.17627642,172.24,172.23,73.89124993]
[1748515052211,18.79181043,172.3,172.25,26.14216157]
[1748515052212,1.17627642,172.26,172.25,26.14216157]
[1748515052434,1.17627642,172.26,172.25,38.47124993]
[1748515052643,1.17627642,172.26,172.25,26.14216157]
[1748515052950,7.26577777,172.26,172.25,26.14216157]
[1748515053176,1.46059956,172.26,172.25,26.14216157]
[1748515053320,1.46059956,172.26,172.25,38.47124993]
[1748515053652,1.17627642,172.26,172.25,38.47124993]
[1748515074233,1.17627642,172.27,172.26,0.14216157]
[1748515074543,1.17627642,172.27,172.26,38.47124993]
[1748515078533,6.98111765,172.27,172.26,26.14216157]
[1748515078735,1.46059956,172.27,172.26,26.14216157]
[1748515078934,1.17627642,172.27,172.26,38.47124993]
[1748515080063,1.17627642,172.27,172.26,34.04108155]
[1748515080551,1.17627642,172.27,172.26,8.04108155]
[1748515081659,1.17627642,172.27,172.26,0.14216157]
[1748515081867,1.17627642,172.27,172.26,8.04108155]
[1748515086959,1.17627642,172.28,172.26,13.84623786]
[1748515087264,1.17627642,172.28,172.27,8.04108155]
[1748515090675,1.17627642,172.21,172.17,14.00474131]
[1748515090857,1.17627642,172.21,172.2,35.54216157]
[1748515091060,1.17627642,172.21,172.2,43.46108155]
[1748515091253,1.17627642,172.21,172.2,69.46108155]
[1748515092167,1.17627642,172.21,172.2,43.46108155]
[1748515092543,1.17627642,172.21,172.2,8.04108155]
[1748515094065,1.17627642,172.21,172.2,12.49272137]
[1748515111585,1.17627642,172.23,172.2,30.65048209]
[1748515111784,1.17627642,172.23,172.22,12.49272137]
[1748515112585,1.17627642,172.24,172.23,0.14216157]
[1748515112784,1.17627642,172.26,172.23,12.49272137]
[1748515112991,1.17627642,172.27,172.25,12.49272137]
[1748515113189,1.17627642,172.27,172.26,12.49272137]
[1748515114392,1.17627642,172.28,172.27,0.14216157]
[1748515114596,1.17627642,172.28,172.27,12.49272137]
[1748515116518,1.17627642,172.27,172.26,0.14216157]
[1748515116717,1.17627642,172.27,172.26,12.49272137]
[1748515125427,1.17627642,172.27,172.26,0.14216157]
[1748515125601,1.17627642,172.27,172.26,12.49272137]
[1748515129934,1.17627642,172.27,172.26,8.04132351]
[1748515142342,1.17627642,172.28,172.26,8.04132351]
[1748515142552,1.17627642,172.27,172.26,8.04132351]
[1748515142757,1.17627642,172.27,172.26,43.44132351]
[1748515143061,1.17627642,172.28,172.26,43.44132351]
[1748515143541,147.3,172.31,172.26,43.44132351]
[1748515143542,1.17627642,172.27,172.26,43.44132351]
[1748515146855,1.17627642,172.27,172.26,35.54216157]
[1748515147037,1.17627642,172.27,172.26,43.44132351]
[1748515148157,1.17627642,172.27,172.26,8.04132351]
[1748515158470,1.17627642,172.27,172.26,0.14216157]
[1748515158655,1.17627642,172.27,172.26,8.04132351]
[1748515164458,1.17627642,172.27,172.26,0.14216157]